bitfinex/quotes_SOLUSD_20220226
["timestamp","ask_amount","ask_price","bid_price","bid_amount"]
[1645888773273,45.78640819,91.604,91.521,63.32586687]
[1645888773573,23.44512339,91.604,91.522,2.53802165]
[1645888773771,45.78640819,91.603,91.522,2.53802165]
[1645888774174,22.3412848,91.603,91.522,2.53802165]
[1645888774472,22.3412848,91.603,91.53,16.3903]
[1645888775076,22.3412848,91.603,91.531,23.6839]
[1645888781482,22.3412848,91.603,91.531,23.46480955]
[1645888781682,23.44512339,91.602,91.531,23.46480955]
[1645888781881,16.3929,91.6,91.531,23.46480955]
[1645888782284,38.7341848,91.6,91.531,23.46480955]
[1645888782684,91.55870585,91.599,91.5,15.8]
[1645888782984,28.03007564,91.598,91.514,23.4838]
[1645888783182,65.73,91.589,91.514,23.4838]
[1645888783388,65.73,91.587,91.514,23.4838]
[1645888783584,1.78789163,91.586,91.514,23.4838]
[1645888784084,1.63474485,91.584,91.514,23.4838]
[1645888784484,16.3988,91.58,91.514,23.4838]
[1645888784684,1.55052395,91.579,91.514,23.4838]
[1645888785784,23.98413241,91.587,91.514,23.4838]
[1645888787492,16.3955,91.58,91.514,23.4838]
[1645888796700,22.6235,91.595,91.514,23.4838]
[1645888797819,16.3938,91.59,91.514,23.4838]
[1645888799718,16.3938,91.59,91.515,109.6]
[1645888799922,23.98413241,91.592,91.521,109.6]
[1645888800117,22.6235,91.595,91.522,2.72857402]
[1645888801821,23.98413241,91.594,91.522,2.72857402]
[1645888802023,23.98413241,91.594,91.53,16.3904]
[1645888802224,23.98413241,91.594,91.53,15.8]
[1645888802423,23.46638454,91.588,91.53,15.8]
[1645888802828,23.46638454,91.588,91.531,23.0595]
[1645888821945,23.46638454,91.588,91.532,2.85715212]
[1645888822345,23.46638454,91.588,91.531,23.0595]
[1645888825147,23.46638454,91.588,91.532,2.44161988]
[1645888826747,0.9917,91.609,91.532,2.44161988]
[1645888826748,0.9917,91.609,91.532,112.04161988]
[1645888826947,23.6579,91.62,91.54,16.3882]
[1645888827152,23.6579,91.62,91.541,57.06949938]
[1645888827353,23.6579,91.62,91.542,112.24464611]
[1645888827548,23.6579,91.62,91.543,2.33398761]
[1645888827748,23.6579,91.62,91.546,2.3275556]
[1645888827949,0.9312,91.636,91.561,109.6]
[1645888828149,22.5698,91.645,91.564,3.06532145]
[1645888828449,0.9009,91.644,91.564,3.06532145]
[1645888828649,22.5698,91.645,91.564,3.06532145]
[1645888828849,23.98413241,91.646,91.564,3.06532145]
[1645888829849,23.98413241,91.646,91.562,23.9783]
[1645888829850,23.98413241,91.646,91.583,109.6]
[1645888830056,0.9463,91.661,91.591,109.6]
[1645888830252,0.9463,91.661,91.593,109.6]
[1645888830449,0.9463,91.661,91.594,2.64824918]
[1645888831050,0.9463,91.661,91.592,24.5222]
[1645888831853,23.2559441,91.661,91.592,24.5222]
[1645888832853,22.3096441,91.661,91.592,24.5222]
[1645888833052,2.74678921,91.66,91.592,24.5222]
[1645888833253,4.25125295,91.66,91.592,24.5222]
[1645888833453,2.74678921,91.66,91.592,24.5222]
[1645888833653,22.3096441,91.659,91.592,24.5222]
[1645888834055,23.7345,91.658,91.592,24.5222]
[1645888834655,1.006,91.668,91.592,24.5222]
[1645888834656,1.006,91.668,91.593,109.6]
[1645888834959,1.006,91.668,91.613,109.6]
[1645888835156,1.006,91.668,91.612,50.97639886]
[1645888835454,1.006,91.668,91.613,22.9215]
[1645888835858,22.7988,91.695,91.613,22.9215]
[1645888836255,16.3747,91.7,91.613,22.9215]
[1645888836457,16.3747,91.7,91.621,2.34899876]
[1645888836756,19.1685416,91.7,91.622,2.26321565]
[1645888836955,2.7938416,91.699,91.62,32.1739]
[1645888837658,24.5845,91.698,91.62,32.1739]
[1645888837857,27.33128921,91.698,91.62,32.1739]
[1645888838473,2.38358246,91.697,91.62,32.1739]
[1645888840178,65.73,91.695,91.62,15.8]
[1645888840376,1.74395098,91.694,91.613,45.6363]
[1645888840574,65.73,91.693,91.613,45.6363]
[1645888840774,1.50745348,91.692,91.613,45.6363]
[1645888840976,65.73,91.691,91.613,45.6363]
[1645888841175,1.80619918,91.69,91.613,45.6363]
[1645888841375,1.80619918,91.69,91.612,50.97639886]
[1645888841578,18.90907346,91.689,91.59,18.43368839]
[1645888841877,175.33,91.679,91.572,24.4612]
[1645888842077,175.33,91.677,91.572,24.4612]
[1645888842277,1.35618082,91.676,91.572,24.4612]
[1645888842479,65.73,91.675,91.572,24.4612]
[1645888842682,1.62815254,91.674,91.573,59.43661518]
[1645888842881,54.78,91.672,91.573,59.43661518]
[1645888843079,65.73,91.667,91.573,59.43661518]
[1645888843280,120.51,91.663,91.573,59.43661518]
[1645888843480,1.65204319,91.662,91.573,59.43661518]
[1645888843883,4.3988324,91.662,91.573,59.43661518]
[1645888844079,5.17742406,91.661,91.573,59.43661518]
[1645888844280,89.86354991,91.661,91.573,59.43661518]
[1645888844484,65.73,91.659,91.573,59.43661518]
[1645888844684,1.80559687,91.658,91.573,59.43661518]
[1645888844884,4.18917933,91.658,91.573,59.43661518]
[1645888845084,65.73,91.656,91.573,59.43661518]
[1645888845287,2.77852655,91.655,91.573,59.43661518]
[1645888845483,65.73,91.654,91.573,59.43661518]
[1645888845685,65.73,91.652,91.573,59.43661518]
[1645888845985,1.35390976,91.651,91.573,59.43661518]
[1645888846184,4.10069897,91.651,91.573,59.43661518]
[1645888846587,2.74678921,91.65,91.573,59.43661518]
[1645888846988,33.9448664,91.653,91.575,3.02235754]
[1645888847189,22.7695,91.653,91.575,3.02235754]
[1645888847488,22.7695,91.653,91.58,15.8]
[1645888847688,2.74678921,91.664,91.581,111.95691896]
[1645888847890,39.1767,91.68,91.582,2.90494138]
[1645888848687,1.83061089,91.679,91.582,2.90494138]
[1645888848888,1.83061089,91.679,91.6,16.3777]
[1645888849088,39.1767,91.68,91.601,60.75939585]
[1645888849588,39.1767,91.68,91.602,2.96373062]
[1645888851492,39.1767,91.68,91.602,112.56373062]
[1645888851693,39.1767,91.68,91.603,2.98916908]
[1645888852094,0.9774,91.679,91.603,2.98916908]
[1645888853195,39.1767,91.68,91.603,2.98916908]
[1645888853394,2.74678921,91.678,91.603,2.98916908]
[1645888853694,22.7975,91.68,91.611,112.12305795]
[1645888853894,22.7975,91.68,91.62,15.8]
[1645888855297,22.7975,91.68,91.621,112.19533225]
[1645888855598,18.95612585,91.694,91.622,2.68411542]
[1645888855795,18.95612585,91.694,91.625,2.5885228]
[1645888855996,2.7938416,91.696,91.625,2.5885228]
[1645888856194,10.57460105,91.707,91.625,2.5885228]
[1645888857597,10.57460105,91.707,91.641,109.6]
[1645888857798,10.57460105,91.707,91.643,109.6]
[1645888857998,10.57460105,91.707,91.644,2.76825721]
[1645888858798,11.1753664,91.715,91.644,2.76825721]
[1645888858998,11.1753664,91.715,91.651,109.6]
[1645888859798,5.61932391,91.72,91.651,109.6]
[1645888860197,5.61932391,91.72,91.65,32.1686]
[1645888860399,5.61932391,91.72,91.651,109.6]
[1645888860597,5.61932391,91.72,91.65,32.1686]
[1645888861498,0.9731,91.729,91.652,2.338453]
[1645888861699,0.9731,91.729,91.66,16.367]
[1645888861897,0.9731,91.729,91.66,32.167]
[1645888862099,16.3689,91.73,91.66,32.167]
[1645888862298,2.7938416,91.728,91.66,32.167]
[1645888862699,2.38358246,91.727,91.66,32.167]
[1645888863201,2.7938416,91.726,91.66,32.167]
[1645888863602,21.74996745,91.726,91.66,32.167]
[1645888863802,24.49675666,91.726,91.66,32.167]
[1645888864002,21.74996745,91.726,91.66,32.167]
[1645888864325,24.49675666,91.726,91.66,32.167]
[1645888864726,24.49675666,91.726,91.66,15.8]
[1645888864925,24.49675666,91.726,91.652,24.9889]
[1645888865126,3.7697416,91.725,91.652,24.9889]
[1645888865328,22.72586745,91.725,91.652,24.9889]
[1645888865526,2.74678921,91.724,91.652,24.9889]
[1645888865726,24.1528,91.723,91.652,24.9889]
[1645888866126,2.74678921,91.722,91.652,24.9889]
[1645888866325,0.9869,91.721,91.652,24.9889]
[1645888867026,2.74678921,91.72,91.652,24.9889]
[1645888868432,2.74678921,91.72,91.653,109.6]
[1645888868727,2.74678921,91.72,91.654,2.97360048]
[1645888868928,2.74678921,91.72,91.652,24.9889]
[1645888869928,2.74678921,91.72,91.653,2.40318344]
[1645888870328,2.74678921,91.72,91.653,112.00318344]
[1645888870628,2.74678921,91.72,91.654,2.91243615]
[1645888878444,2.74678921,91.72,91.653,109.6]
[1645888878645,2.74678921,91.72,91.652,24.9889]
[1645888879449,2.74678921,91.72,91.653,109.6]
[1645888880646,16.3689,91.73,91.653,109.6]
[1645888880847,0.8603,91.738,91.661,111.87126762]
[1645888881046,0.8603,91.738,91.662,2.77981821]
[1645888881047,23.8766,91.738,91.662,2.77981821]
[1645888881647,23.8766,91.738,91.664,109.6]
[1645888881848,23.8766,91.738,91.665,2.45442446]
[1645888882150,23.8766,91.738,91.67,15.8]
[1645888882448,23.8766,91.738,91.672,109.6]
[1645888882647,23.8766,91.738,91.671,48.8298698]
[1645888883451,23.8766,91.738,91.672,109.6]
[1645888883850,23.8766,91.738,91.673,2.52757794]
[1645888884153,23.8766,91.738,91.676,2.43046465]
[1645888884350,23.8766,91.738,91.681,109.6]
[1645888885451,23.0163,91.738,91.681,109.6]
[1645888885651,0.9764,91.754,91.682,2.92173101]
[1645888886149,0.9764,91.754,91.685,2.78298336]
[1645888886353,0.9764,91.754,91.701,109.6]
[1645888886555,0.9764,91.754,91.703,109.6]
[1645888886756,0.9764,91.754,91.704,2.28090586]
[1645888887153,113.0,91.789,91.704,2.28090586]
[1645888887356,113.0,91.789,91.705,2.74678921]
[1645888887556,2.74678921,91.815,91.705,2.74678921]
[1645888887754,2.74678921,91.815,91.704,2.28090586]
[1645888887957,15.02829966,91.824,91.751,109.6]
[1645888888159,1.80895652,91.855,91.753,109.6]
[1645888888360,24.314,91.885,91.755,109.6]
[1645888888557,48.6203,91.898,91.756,3.28039662]
[1645888888762,1.65030761,91.914,91.756,3.28039662]
[1645888888763,1.65030761,91.914,91.791,109.6]
[1645888888955,1.45072275,91.924,91.801,109.6]
[1645888889156,1.45072275,91.924,91.823,109.6]
[1645888889362,1.45072275,91.924,91.831,109.6]
[1645888889557,1.7055034,91.924,91.831,109.6]
[1645888889760,1.52913102,91.949,91.831,109.6]
[1645888890159,16.3366,91.92,91.841,109.6]
[1645888890360,16.3366,91.92,91.824,2.51167244]
[1645888890361,12.89323737,91.927,91.823,120.0]
[1645888890598,1.46804895,91.952,91.831,3.08720648]
[1645888890790,1.62939776,91.988,91.831,3.08720648]
[1645888890990,1.4041359,91.986,91.831,3.08720648]
[1645888891189,1.4041359,91.986,91.841,2.79815996]
[1645888891391,2.32851546,91.979,91.85,15.8]
[1645888891591,2.32851546,91.979,91.851,59.23259576]
[1645888891790,2.32851546,91.979,91.852,2.49346171]
[1645888892389,1.64577378,91.978,91.852,2.49346171]
[1645888892592,65.73,91.969,91.852,2.49346171]
[1645888892790,109.6,91.966,91.852,2.49346171]
[1645888892989,1.76625521,91.96,91.852,2.49346171]
[1645888893192,65.73,91.959,91.852,2.49346171]
[1645888893389,1.84702808,91.958,91.852,2.49346171]
[1645888893791,1.51001623,91.939,91.831,2.78243149]
[1645888893990,1.84345736,91.938,91.821,2.90132449]
[1645888894391,1.80857186,91.937,91.821,2.90132449]
[1645888894597,1.73766046,91.936,91.821,2.90132449]
[1645888894791,13.66560449,91.936,91.823,2.88777914]
[1645888894992,11.92794403,91.935,91.823,2.88777914]
[1645888895194,16.3426,91.91,91.823,2.88777914]
[1645888895394,65.73,91.905,91.77,15.8]
[1645888895592,1.59124146,91.909,91.771,2.36549932]
[1645888895593,65.73,91.899,91.771,2.36549932]
[1645888895792,175.33,91.889,91.73,15.8]
[1645888895995,65.73,91.872,91.731,2.72211914]
[1645888896193,65.73,91.859,91.732,57.23358435]
[1645888896395,16.355,91.85,91.733,2.94097365]
[1645888896794,16.355,91.85,91.733,5.68776286]
[1645888899401,21.75212331,91.849,91.733,5.68776286]
[1645888899800,16.355,91.85,91.733,5.68776286]
[1645888900400,16.355,91.85,91.734,109.6]
[1645888900601,16.355,91.85,91.735,2.83799402]
[1645888901605,65.73,91.849,91.735,2.83799402]
[1645888901804,91.17036285,91.849,91.735,2.83799402]
[1645888902006,65.73,91.847,91.735,2.83799402]
[1645888902307,16.3539,91.84,91.735,2.83799402]
[1645888903308,1.41590554,91.836,91.735,2.83799402]
[1645888903706,202.0029187,91.835,91.733,2.27183206]
[1645888903906,202.0029187,91.835,91.693,2.9737751]
[1645888903907,65.73,91.819,91.693,2.9737751]
[1645888904107,1.592182,91.818,91.693,2.9737751]
[1645888904306,1.55440114,91.816,91.694,3.0532474]
[1645888904509,65.73,91.815,91.694,3.0532474]
[1645888904707,109.6,91.808,91.695,46.43754329]
[1645888905009,109.6,91.808,91.696,2.37696468]
[1645888905010,1.75126282,91.807,91.696,2.37696468]
[1645888905207,109.6,91.806,91.696,2.37696468]
[1645888905407,164.38,91.804,91.696,2.37696468]
[1645888905608,109.6,91.799,91.696,2.37696468]
[1645888905807,1.49225705,91.798,91.696,2.37696468]
[1645888906006,136.5326199,91.798,91.696,2.37696468]
[1645888906207,14.80120885,91.797,91.696,2.37696468]
[1645888906410,16.3648,91.79,91.682,2.63528]
[1645888906608,1.57900565,91.789,91.66,71.6432]
[1645888906807,54.5587,91.78,91.661,2.8764329]
[1645888907208,3.76094896,91.779,91.677,50.89058598]
[1645888907407,16.3669,91.77,91.678,2.48867692]
[1645888908211,25.44036285,91.769,91.678,2.48867692]
[1645888908607,48.45668271,91.769,91.678,2.48867692]
[1645888908808,25.44036285,91.769,91.678,2.48867692]
[1645888909209,23.01631986,91.768,91.678,2.48867692]
[1645888912411,23.01631986,91.768,91.661,4.36]
[1645888912412,65.73,91.759,91.661,7.21632046]
[1645888912713,65.73,91.759,91.661,4.36]
[1645888912714,26.89257671,91.758,91.661,4.36]
[1645888912911,65.73,91.757,91.627,4.361]
[1645888913115,65.73,91.755,91.612,4.362]
[1645888913311,15.8,91.74,91.613,46.39276898]
[1645888913511,15.8,91.74,91.614,7.2276958]
[1645888913911,25.44036285,91.739,91.614,7.2276958]
[1645888914112,48.45668271,91.739,91.614,7.2276958]
[1645888914512,25.44036285,91.739,91.614,7.2276958]
[1645888914712,23.01631986,91.738,91.614,7.2276958]
[1645888914913,48.45668271,91.738,91.614,7.2276958]
[1645888915113,48.45668271,91.738,91.615,2.74678921]
[1645888915316,22.6624,91.737,91.616,4.363]
[1645888915618,22.6624,91.737,91.63,15.8]
[1645888915814,22.6624,91.737,91.631,7.43527589]
[1645888916013,22.6624,91.737,91.631,10.1820651]
[1645888916613,22.6624,91.737,91.632,2.74678921]
[1645888916860,22.6624,91.737,91.632,5.43664352]
[1645888917217,22.6624,91.737,91.633,2.74678921]
[1645888918021,16.3747,91.74,91.633,2.74678921]
[1645888919624,16.3747,91.74,91.641,155.53048847]
[1645888919922,16.3747,91.74,91.642,5.53828152]
[1645888920122,16.3747,91.74,91.643,109.6]
[1645888920326,16.3747,91.74,91.644,2.65890815]
[1645888920524,16.3747,91.74,91.644,5.40569736]
[1645888921227,16.3747,91.74,91.644,2.65890815]
[1645888921627,48.45668271,91.739,91.644,2.65890815]
[1645888921826,55.77668271,91.739,91.644,2.65890815]
[1645888922028,25.44036285,91.738,91.644,2.65890815]
[1645888922226,135.04036285,91.738,91.644,2.65890815]
[1645888922426,23.27745664,91.737,91.644,2.65890815]
[1645888922631,48.71781949,91.737,91.644,2.65890815]
[1645888922929,25.44036285,91.736,91.644,2.65890815]
[1645888923527,23.04796057,91.735,91.644,2.65890815]
[1645888923928,23.04796057,91.735,91.622,2.2612376]
[1645888923929,65.73,91.733,91.622,2.2612376]
[1645888924129,65.73,91.71,91.618,4.362]
[1645888924340,109.6,91.697,91.618,4.362]
[1645888924541,1.53618117,91.696,91.618,4.362]
[1645888924741,67.26618117,91.696,91.618,4.362]
[1645888924943,80.3446107,91.696,91.62,3.07866778]
[1645888925544,120.51,91.694,91.582,2.93442939]
[1645888925746,65.73,91.679,91.571,3.09292121]
[1645888925944,1.7719898,91.678,91.555,2.55281049]
[1645888926142,1.7719898,91.678,91.519,113.0]
[1645888926143,109.6,91.676,91.531,2.54438661]
[1645888926343,109.6,91.676,91.532,54.97747316]
[1645888926344,109.6,91.662,91.532,54.97747316]
[1645888926544,65.73,91.649,91.533,2.74466815]
[1645888926745,73.25,91.649,91.533,2.74466815]
[1645888927046,65.73,91.647,91.533,112.34466815]
[1645888927244,65.73,91.647,91.534,2.66089619]
[1645888927647,189.9446107,91.647,91.534,2.66089619]
[1645888927845,65.73,91.645,91.534,2.66089619]
[1645888928244,48.48832342,91.646,91.534,2.66089619]
[1645888928245,175.33,91.637,91.534,2.66089619]
[1645888928648,65.73,91.637,91.534,2.66089619]
[1645888929047,54.6484,91.64,91.534,2.66089619]
[1645888929249,16.3946,91.63,91.534,2.66089619]
[1645888933651,65.73,91.629,91.534,2.66089619]
[1645888933852,16.3911,91.62,91.534,2.66089619]
[1645888937053,23.27745664,91.639,91.541,109.6]
[1645888937255,16.3854,91.64,91.551,109.6]
[1645888937456,11.41170793,91.669,91.552,2.28349516]
[1645888937656,54.6111,91.67,91.554,109.6]
[1645888937854,54.6111,91.67,91.555,2.73463668]
[1645888938055,54.6111,91.67,91.571,109.6]
[1645888938257,54.6111,91.67,91.573,109.6]
[1645888938457,54.6111,91.67,91.573,2.3669837]
[1645888938655,46.51494706,91.669,91.573,2.3669837]
[1645888939054,25.44036285,91.669,91.573,2.3669837]
[1645888939257,65.73,91.668,91.573,2.3669837]
[1645888939456,25.2191923,91.668,91.573,111.9669837]
[1645888939655,25.2191923,91.668,91.574,3.09129455]
[1645888940656,65.73,91.667,91.574,3.09129455]
[1645888941159,65.73,91.669,91.574,3.09129455]
[1645888941356,65.73,91.665,91.574,3.09129455]
[1645888941757,65.73,91.663,91.574,3.09129455]
[1645888942358,65.73,91.661,91.574,3.09129455]
[1645888943058,65.73,91.659,91.574,3.09129455]
[1645888944758,25.2191923,91.658,91.574,3.09129455]
[1645888950867,65.73,91.657,91.574,3.09129455]
[1645888953974,65.73,91.656,91.574,3.09129455]
[1645888954172,109.6,91.653,91.554,2.34660271]
[1645888954373,175.33,91.639,91.554,2.34660271]
[1645888954571,175.33,91.639,91.47,197.55]
[1645888954572,65.73,91.629,91.534,2.9021696]
[1645888954771,175.33,91.627,91.534,2.9021696]
[1645888954972,175.33,91.627,91.535,45.49551528]
[1645888955175,175.33,91.627,91.536,2.83099675]
[1645888955375,1.78949524,91.626,91.536,2.83099675]
[1645888955573,175.33,91.619,91.536,2.83099675]
[1645888955774,65.73,91.609,91.536,2.83099675]
[1645888958875,109.6,91.606,91.536,2.83099675]
[1645888959179,109.6,91.589,91.481,2.66708032]
[1645888959477,175.33,91.579,91.472,3.07999235]
[1645888959678,199.6851,91.579,91.472,3.07999235]
[1645888959876,199.6851,91.579,91.473,59.43118387]
[1645888960076,199.6851,91.579,91.474,2.88593992]
[1645888960275,65.73,91.569,91.474,2.88593992]
[1645888961877,175.33,91.557,91.474,2.88593992]
[1645888962078,65.73,91.549,91.474,2.88593992]
[1645888963278,16.405,91.55,91.451,2.47400306]
[1645888963279,109.6,91.532,91.451,2.47400306]
[1645888963478,65.73,91.509,91.451,2.47400306]
[1645888963880,65.73,91.509,91.425,2.31156298]
[1645888964279,65.73,91.531,91.426,52.31180005]
[1645888964482,16.4078,91.51,91.431,109.6]
[1645888964683,16.4078,91.51,91.432,2.44501661]
[1645888966183,16.4048,91.53,91.432,5.19180582]
[1645888966385,23.0447,91.56,91.435,2.43894946]
[1645888966584,23.0447,91.56,91.451,109.6]
[1645888966784,23.0447,91.56,91.453,109.6]
[1645888966983,23.0447,91.56,91.455,109.6]
[1645888967185,23.0447,91.56,91.456,2.95200155]
[1645888967387,23.0447,91.56,91.461,109.6]
[1645888967586,16.4009,91.55,91.462,2.40967628]
[1645888967786,16.4009,91.55,91.462,5.15646549]
[1645888967989,16.4009,91.55,91.462,2.40967628]
[1645888968185,16.4009,91.55,91.463,2.74678921]
[1645888968385,16.4009,91.55,91.462,2.40967628]
[1645888968988,16.4009,91.55,91.463,2.74678921]
[1645888969390,16.4009,91.55,91.462,2.40967628]
[1645888979400,65.73,91.549,91.462,2.40967628]
[1645888979799,65.73,91.547,91.462,2.40967628]
[1645888981017,65.73,91.545,91.462,2.40967628]
[1645888981418,65.73,91.545,91.455,2.61643815]
[1645888982217,65.73,91.544,91.455,2.61643815]
[1645888982417,74.87945384,91.544,91.455,2.61643815]
[1645888982618,88.59532563,91.544,91.455,2.61643815]
[1645888982819,0.56312524,91.543,91.455,2.61643815]
[1645888984824,65.73,91.536,91.455,2.61643815]
[1645888985024,65.73,91.532,91.455,2.61643815]
[1645888985321,65.73,91.518,91.434,2.73531032]
[1645888985521,16.4115,91.5,91.434,2.73531032]
[1645888986122,16.4115,91.5,91.436,2.99687306]
[1645888999639,54.705,91.51,91.436,2.99687306]
[1645888999640,65.73,91.499,91.436,2.99687306]
[1645888999836,16.4146,91.49,91.436,2.99687306]
[1645889000437,16.4146,91.49,91.438,2.97382346]
[1645889001440,24.20690552,91.509,91.438,2.97382346]
[1645889001441,16.4085,91.51,91.438,112.57382346]
[1645889001639,16.4085,91.51,91.441,109.6]
[1645889001839,16.4085,91.51,91.442,2.28675921]
[1645889002038,16.4085,91.51,91.442,5.03354842]
[1645889002239,16.4085,91.51,91.443,2.74678921]
[1645889003842,16.4051,91.53,91.443,2.74678921]
[1645889004041,54.6886,91.54,91.443,2.74678921]
[1645889004042,54.6886,91.54,91.445,109.6]
[1645889004241,54.6886,91.54,91.446,2.64985304]
[1645889004444,54.6886,91.54,91.451,2.79287146]
[1645889005044,54.6886,91.54,91.452,2.74678921]
[1645889005444,16.4054,91.52,91.452,2.74678921]
[1645889006743,78.4671,91.54,91.452,5.07796493]
[1645889007146,22.86532563,91.546,91.453,2.74678921]
[1645889007348,0.56312524,91.56,91.453,2.74678921]
[1645889007744,16.4035,91.55,91.47,16.3996]
[1645889007944,16.4035,91.55,91.47,15.8]
[1645889008146,16.4035,91.55,91.471,48.14502396]
[1645889008344,16.4035,91.55,91.472,2.61507115]
[1645889008745,16.96662524,91.55,91.472,2.61507115]
[1645889009146,0.56312524,91.549,91.472,2.61507115]
[1645889009745,65.73,91.547,91.472,2.61507115]
[1645889010149,65.73,91.545,91.472,2.61507115]
[1645889010547,0.56312524,91.544,91.472,2.61507115]
[1645889011149,22.5814,91.549,91.472,2.61507115]
[1645889011349,22.5814,91.549,91.472,10.90186036]
[1645889011949,22.5814,91.549,91.472,8.15507115]
[1645889013253,16.4035,91.55,91.473,109.6]
[1645889013452,16.3981,91.56,91.474,2.59021206]
[1645889013650,16.3981,91.56,91.475,109.6]
[1645889013852,16.3981,91.56,91.476,2.50523435]
[1645889014051,16.3981,91.56,91.481,109.6]
[1645889014371,16.3981,91.56,91.482,5.04343109]
[1645889014756,16.3981,91.56,91.483,2.74678921]
[1645889017962,16.3981,91.56,91.484,30.78467278]
[1645889018161,16.3981,91.56,91.485,2.75073249]
[1645889018963,16.3981,91.56,91.486,30.78473669]
[1645889019164,16.3981,91.56,91.487,3.08032348]
[1645889019964,16.4022,91.55,91.487,3.08032348]
[1645889020164,16.4022,91.55,91.476,2.62129372]
[1645889020764,16.4022,91.55,91.478,3.04670361]
[1645889020970,16.4022,91.55,91.478,8.90670361]
[1645889021165,54.78,91.615,91.48,112.30009786]
[1645889021367,22.8833,91.59,91.491,109.6]
[1645889021566,22.8833,91.59,91.494,2.9807081]
[1645889021979,22.8833,91.59,91.497,2.85062695]
[1645889022279,22.86532563,91.589,91.5,15.8]
[1645889022481,22.86532563,91.589,91.501,63.09088315]
[1645889022681,22.86532563,91.589,91.502,2.35302268]
[1645889023184,16.3949,91.58,91.502,2.35302268]
[1645889023583,23.07982267,91.579,91.502,2.35302268]
[1645889023984,43.69264734,91.579,91.502,2.35302268]
[1645889024183,21.95357219,91.579,91.502,2.35302268]
[1645889024391,22.86532563,91.578,91.502,2.35302268]
[1645889025488,16.3972,91.57,91.502,2.35302268]
[1645889027186,23.8774,91.577,91.502,2.35302268]
[1645889027386,23.8774,91.577,91.502,8.30302268]
[1645889027588,21.95357219,91.604,91.502,8.30302268]
[1645889027785,46.86587219,91.604,91.502,8.30302268]
[1645889027985,49.11837315,91.604,91.502,8.30302268]
[1645889028191,20.61282467,91.603,91.502,8.30302268]
[1645889028387,20.61282467,91.603,91.51,16.393]
[1645889028587,20.61282467,91.603,91.511,2.36143045]
[1645889029388,65.73,91.602,91.511,2.36143045]
[1645889029589,16.3952,91.59,91.511,2.36143045]
[1645889029792,16.3952,91.59,91.511,111.96143045]
[1645889029992,21.95357219,91.601,91.512,2.78203054]
[1645889030192,24.9123,91.604,91.513,109.6]
[1645889030490,13.31883926,91.625,91.514,2.77238854]
[1645889030693,0.56312524,91.628,91.516,2.3444837]
[1645889030893,16.3868,91.63,91.531,109.6]
[1645889031096,16.3868,91.63,91.533,109.6]
[1645889031291,16.3868,91.63,91.534,2.97365308]
[1645889031690,23.6162,91.635,91.56,16.3842]
[1645889031892,23.6162,91.635,91.561,48.22890774]
[1645889032090,24.17932524,91.635,91.562,2.51682262]
[1645889033692,23.6162,91.635,91.562,2.51682262]
[1645889033895,21.95357219,91.648,91.57,16.3828]
[1645889034092,21.95357219,91.648,91.562,2.51682262]
[1645889034093,21.95357219,91.648,91.571,2.70034138]
[1645889034393,22.86532563,91.651,91.564,2.52206908]
[1645889034594,22.86532563,91.651,91.565,2.69410489]
[1645889035594,22.86532563,91.651,91.581,2.60888158]
[1645889036395,21.95357219,91.65,91.581,2.60888158]
[1645889036795,22.86532563,91.651,91.566,2.93329108]
[1645889038497,22.86532563,91.651,91.57,16.3827]
[1645889038696,22.86532563,91.651,91.571,2.3246514]
[1645889039195,16.3806,91.66,91.572,2.81965725]
[1645889039595,21.95357219,91.651,91.572,2.81965725]
[1645889039995,22.3338411,91.65,91.572,2.81965725]
[1645889040395,21.95357219,91.649,91.572,2.81965725]
[1645889040799,1.12625048,91.648,91.572,2.81965725]
[1645889041097,22.86532563,91.648,91.572,2.81965725]
[1645889041297,44.81889782,91.648,91.572,2.81965725]
[1645889041503,0.56312524,91.647,91.565,23.814]
[1645889041698,0.56312524,91.647,91.566,2.58120536]
[1645889041899,22.9715,91.646,91.566,2.58120536]
[1645889042600,65.73,91.645,91.566,2.58120536]
[1645889042798,87.68357219,91.645,91.566,2.58120536]